Cogmind - Beta 14 @@@ ROGUE MODE // 2024.09.14 @ 18:01:50 Player: Dull Result: Destroyed by 6L-OCS(R) with Subdweller Laser Performance ------------- Evolutions (0) 0 Regions Visited (2) 400 Robots Destroyed (27) 135 Value Destroyed (686) 686 Prototype IDs (3) 60 Alien Tech Used (0) 0 Bonus (0) 0 TOTAL SCORE: 1281 Bonus ------- None Cogmind --------- Core Integrity 0/250 Matter 199/300 Energy 179/200 System Corruption 2% Temperature Warm (163) Movement Rolling (120) Ox1 Location -10/Subcaves Parts ------- > --- POWER (1) -------- Subdweller Power Source > --- PROPULSION (2) --- Subdweller Monowheel > --- UTILITY (2) ------ Small Storage Unit Large Storage Unit > --- WEAPON (2) ------- Makeshift Laser > --- INVENTORY (15) --- Light Ion Engine Subdweller Power Source Wheel Subdweller Optics Makeshift Hacking Suite Subdweller Machine Gun Battle Cannon Grenade Launcher Mining Claw Scrap Shield Fragment (49) Scrap Shield Fragment (48) Scrap Shield Fragment (48) Scrap Shield Fragment (47) Peak State ------------ > --- POWER ------------ Subdweller Power Source > --- PROPULSION ------- Subdweller Monowheel Subdweller Monowheel > --- UTILITY ---------- Small Storage Unit Large Storage Unit > --- WEAPON ----------- Subdweller Beam Cannon Makeshift Shrapnel Gun > --- INVENTORY -------- Light Ion Engine Subdweller Power Source Wheel Subdweller Optics Makeshift Hacking Suite Makeshift Laser Subdweller Machine Gun Battle Cannon Grenade Launcher Mining Claw Scrap Shield Fragment Scrap Shield Fragment Scrap Shield Fragment Scrap Shield Fragment Scrap Shield Fragment [Rating: 17] Favorites ----------- Power Ion Engine Engine Ion Engine Propulsion Light Treads Treads Light Treads Leg Aluminum Leg Wheel Subdweller Monowheel Utility Small Storage Unit Storage Small Storage Unit Weapon Shotgun Energy Gun Medium Laser Energy Cannon Subdweller Beam Cannon Ballistic Gun Shotgun Launcher Grenade Launcher Slashing Weapon Mining Claw Build | -11 -10 -10 ------- Run | Yrd Mat Sub Slots Evolved . | . . . Power . | . . . Propulsion . | . . . Utility . | . . . Weapon . | . . . Parts Attached 31 | . 11 20 Power 3 | . 1 2 Engine 3 | . 1 2 Core . | . . . Reactor . | . . . Propulsion 6 | . 3 3 Treads 4 | . 3 1 Leg . | . . . Wheel 2 | . . 2 Hover . | . . . Flight . | . . . Utility 1 | . 1 . Device . | . . . Storage 1 | . 1 . Processor . | . . . Hackware . | . . . Protection . | . . . Artifact . | . . . Weapon 21 | . 6 15 Energy Gun 1 | . . 1 Energy Cannon 3 | . . 3 Ballistic Gun 11 | . 3 8 Ballistic Cannon . | . . . Launcher 5 | . 3 2 Special Weapon . | . . . Impact Weapon . | . . . Slashing Weapon 1 | . . 1 Piercing Weapon . | . . . Special Melee Weapon . | . . . Unidentified Prototypes . | . . . Parts Lost 10 | . . 10 Power . | . . . Propulsion 3 | . . 3 Utility . | . . . Weapon 7 | . . 7 Highest Loss Streak 4 | . . 4 To Critical Strikes . | . . . Average Slot Usage (%) 99 | . 99 99 Engine 14 | . 14 14 Treads 25 | . 28 21 Wheel 2 | . . 6 Storage 27 | . 27 28 Energy Gun 4 | . 7 . Energy Cannon 3 | . . 9 Ballistic Gun 12 | . 13 10 Launcher 4 | . 7 1 Slashing Weapon 2 | . . 5 Peak Build Rating 17 | 6 10 17 Average Rating 9 | 6 8 10 On Entrance 6 | 6 6 7 Naked Turns . | . . . Heaviest Build 42 | 14 36 42 Greatest Support 40 | 20 40 40 Greatest Overweight (x) 2 | . . 2 Average Overweight (x) . | . . . Largest Inventory Capacity 15 | 8 15 15 Average Capacity 14 | 8 14 15 Most Carried 15 | 6 15 15 Average Carried 10 | 6 11 9 Final Capacity 15 | 8 15 15 Final Carried 13 | 6 5 13 Class Distribution -------------------- 91% | Mutant 8% | Scavenger-Mutant Dominant Class ---------------- Mutant | -10/Materials Mutant | -10/Subcaves Resources | -11 -10 -10 ----------- Run | Yrd Mat Sub Matter Collected 886 | 200 253 433 Remotely . | . . . Salvage Created 1040 | . 597 443 Parts 55 | . 29 26 Haulers Intercepted 2 | . 2 . Recyclers Shooed 3 | . 3 . Parts Field Recycled . | . . . Retrieved Matter . | . . . Parts Self-Destructed . | . . . Prevented . | . . . Kills | -11 -10 -10 ------- Run | Yrd Mat Sub Combat Hostiles Destroyed 21 | . 11 10 Guns 12 | . 8 4 Cannons 3 | . . 3 AOE 6 | . 3 3 Classes Destroyed 7 | . 5 2 Worker 1 | . 1 . Hauler 2 | . 2 . Recycler 3 | . 3 . Swarmer 6 | . 6 . Grunt 5 | . 5 . Artisan 2 | . . 2 Subdweller 10 | . . 10 Best Kill Streak 3 | . 3 2 Combat Bots Only 3 | . 3 2 Max Kills in Single Turn 2 | . 2 1 Gunslinging . | . . . Exploded 2 | . 2 1 Melee . | . . . Uniques/NPCs Destroyed . | . . . Combat | -11 -10 -10 -------- Run | Yrd Mat Sub Hostile Shots Fired 124 | . 31 93 Missed 33 | . 11 22 Damage Taken 1833 | . 221 1612 Core 261 | . 52 209 Absorbed by Shields . | . . . Core Remaining (%) 100 | 100 . . Volleys Fired 93 | . 36 57 Largest 2 | . 2 2 Hottest 160 | . 70 160 Shots Fired 164 | . 64 100 Gun 122 | . 60 62 Cannon 29 | . . 29 Launcher 13 | . 4 9 Special . | . . . Kinetic 98 | . 37 61 Thermal 53 | . 23 30 Explosive 13 | . 4 9 Electromagnetic . | . . . Robot Hit Streak 15 | . 7 15 Robot Miss Streak 4 | . 2 4 Penetration Max . | . . . Secondary Targets 2 | . 2 . Max Gunslinging Chain 1 | . 1 . Shots Hit Robots 117 | . 45 72 Core Hits 56 | . 26 30 Critical Kills 1 | . . 1 Critical Parts Destroyed . | . . . Critical Strikes 5 | . 3 2 Burn 3 | . 3 . Meltdown 1 | . . 1 Destroy 1 | . . 1 Melee Attacks 9 | . . 9 Impact . | . . . Slashing 9 | . . 9 Piercing . | . . . Sneak Attacks . | . . . Combat Hostiles . | . . . Follow-up Attacks . | . . . Damage Inflicted 2588 | . 753 1835 Guns 1448 | . 631 817 Cannons 525 | . . 525 Explosions 602 | . 110 492 Melee . | . . . Ramming 13 | . 12 1 Kinetic 1236 | . 437 799 Thermal 737 | . 194 543 Explosive 602 | . 110 492 Electromagnetic . | . . . Impact . | . . . Slashing . | . . . Piercing . | . . . Highest Corruption 2 | . 2 2 Average Corruption 2 | . 2 2 Corruption Purged . | . . . Corruption Blocked . | . . . Effects 24 | . 13 11 Message Errors 5 | . 3 2 Matter Fused 8 | . 6 2 Heat Flow Errors 2 | . . 2 Energy Discharges 4 | . 1 3 Data Loss (minor) 1 | . 1 . Data Loss (major) 1 | . . 1 Misfires 1 | . . 1 Alerts 2 | . 2 . Overload Shots . | . . . Overflow Damage . | . . . Projectiles . | . . . Explosions . | . . . Melee . | . . . Knockbacks 1 | . 1 . Impact 1 | . 1 . Kinetic . | . . . Secondary . | . . . Self-Inflicted Damage 31 | . 31 . Shots 1 | . 1 . Rammed 6 | . 5 1 Targets Rammed 7 | . 6 1 Kicked . | . . . Crushed 1 | . 1 . Highest Temperature 249 | . 54 249 Average Temperature 41 | . 18 87 Received Heat Transfer 420 | . 57 363 Siege Activations . | . . . Robots Corrupted . | . . . Combat Hostiles . | . . . Parts Fried . | . . . Impact Corruptions . | . . . Robots Melted 1 | . . 1 Combat Hostiles 1 | . . 1 Parts Melted 4 | . 1 3 Heat Transferred 1517 | . 777 740 Parts Sabotaged . | . . . Parts Stolen . | . . . Parts Stripped . | . . . Power Chain Reactions . | . . . Alert | -11 -10 -10 ------- Run | Yrd Mat Sub Peak Influence 200 | . 200 . Initial . | . . . Average 83 | . 83 . Maximum Alert Level 1 | . 1 . Low Security (%) 95 | 100 95 . Level 1 4 | . 4 . Level 2 . | . . . Level 3 . | . . . Level 4 . | . . . Level 5 . | . . . High Security . | . . . Max Security . | . . . Squads Dispatched 1 | . 1 . Investigation 1 | . 1 . Extermination . | . . . Reinforcement . | . . . Assault . | . . . Garrison . | . . . Intercept . | . . . Searches Triggered . | . . . Construction Impeded . | . . . Haulers Reinforced . | . . . Active Scanning Responses . | . . . Cargo Convoy Interrupts . | . . . Stealth | -11 -10 -10 --------- Run | Yrd Mat Sub Distress Signals 1 | . 1 . Communications Jammed . | . . . Distress Signals . | . . . Times Spotted 33 | . 21 12 Peak Tracking Total 4 | . 4 3 Tactical Retreats . | . . . Traps | -11 -10 -10 ------- Run | Yrd Mat Sub Traps Triggered 2 | . 2 . Indirectly . | . . . Trap Hack Attempts . | . . . Triggered . | . . . Disarmed . | . . . Reprogrammed . | . . . Reused . | . . . Traps Extracted . | . . . Installed . | . . . Triggered . | . . . Machines | -11 -10 -10 ---------- Run | Yrd Mat Sub Machines Disabled 2 | . 2 . Max in Single Turn 2 | . 2 . Machines Repaired . | . . . Machines Dismantled . | . . . Machines Sabotaged . | . . . Overloaded Fab Kills . | . . . Hacking | -11 -10 -10 --------- Run | Yrd Mat Sub Machines Accessed 10 | . 8 2 Terminals 7 | . 7 . Fabricators . | . . . Repair Stations . | . . . Recycling Units 1 | . 1 . Scanalyzers . | . . . Garrison Access . | . . . Total Hacks 21 | . 18 3 Successful 11 | . 8 3 Failed 10 | . 10 . Catastrophic 2 | . 2 . Database Lockouts . | . . . Manual 14 | . 14 . Terminals 16 | . 16 . Fabricators . | . . . Repair Stations . | . . . Recycling Units 2 | . 2 . Scanalyzers . | . . . Garrison Access . | . . . Terminal Hacks 9 | . 6 3 Record 1 | . . 1 Part Schematic 1 | . 1 . Robot Analysis 3 | . 3 . Prototype ID Bank 2 | . 2 . Open Door 1 | . . 1 Release Object 1 | . . 1 Fabricator Hacks . | . . . Repair Station Hacks . | . . . Recycling Unit Hacks . | . . . Scanalyzer . | . . . Garrison Access Hacks . | . . . Unauthorized Hacks 2 | . 2 . Terminals . | . . . Fabricators . | . . . Repair Stations . | . . . Recycling Units 2 | . 2 . Reject 1 | . 1 . Mask 1 | . 1 . Scanalyzers . | . . . Garrison Access . | . . . Data Cores Recovered . | . . . Used . | . . . Hacking Detections 6 | . 6 . Full Trace Events 1 | . 1 . Feedback Events . | . . . Feedback Blocked . | . . . Robot Schematics Acquired . | . . . Robots Built . | . . . Authchips . | . . . Time . | . . . Total Robot Build Rating . | . . . Part Schematics Acquired 1 | . 1 . Parts Built . | . . . Authchips . | . . . Time . | . . . Total Part Build Rating . | . . . Parts Repaired . | . . . Time . | . . . Parts Recycled . | . . . Recycled Matter . | . . . Retrieved Matter . | . . . Retrieved Components . | . . . Parts Scanalyzed . | . . . Part Schematics Acquired . | . . . Parts Damaged . | . . . Bothacking | -11 -10 -10 ------------ Run | Yrd Mat Sub Used RIF Installer . | . . . Robots Hacked . | . . . Non-combat . | . . . Combat . | . . . Robot Hacks Applied . | . . . Relay Couplers Released . | . . . Fabnet Peak Effective % . | . . . Robots Rewired . | . . . Allies Hacked . | . . . Hacks Repelled . | . . . Allies | -11 -10 -10 -------- Run | Yrd Mat Sub Total Allies . | . . . Largest Group . | . . . Highest-Rated Group . | . . . Highest-Rated Ally . | . . . Total Orders . | . . . Ally Attacks . | . . . Total Damage . | . . . Kills . | . . . Allies Corrupted . | . . . Allies Melted . | . . . Intel | -11 -10 -10 ------- Run | Yrd Mat Sub Robot Analysis Total 3 | . 3 . Derelict Logs Recovered . | . . . Drone Launches . | . . . Drone Recoveries . | . . . Exploration | -11 -10 -10 ------------- Run | Yrd Mat Sub Turns Passed 2284 | 5 1375 904 Spaces Moved 1035 | 5 613 417 Core . | . . . Treads 935 | . 613 322 Legs 5 | 5 . . Wheels 95 | . . 95 Hover . | . . . Flight . | . . . Fastest Speed 110 | 120 160 110 Average Speed 156 | 120 160 152 Slowest Speed 240 | 120 160 240 Overloaded Moves . | . . . Propulsion Burnouts . | . . . Robots Hopped . | . . . Cave-ins Triggered . | . . . Exploration Rate (%) 42 | 2 96 30 Regions Visited 2 Branch Regions 1 Pre-discovered Areas 1 | . . 1 Known Exits Taken . | . . . Unknown Exits Taken 2 | 1 1 . Scrap Searched 3 | . . 3 Spaces Dug 7 | . 7 . Terrain Destroyed 59 | . 20 39 Melee . | . . . Projectile 2 | . . 2 AOE 57 | . 20 37 Terrain Rammed . | . . . Walls Destroyed . | . . . Machines Disabled . | . . . Actions | -11 -10 -10 --------- Run | Yrd Mat Sub Total 1513 | 4 948 561 Wait 291 | . 253 38 Move 1033 | 4 612 417 Hop . | . . . Pick Up 27 | . 12 15 Fast Attach 4 | . 2 2 Attach 8 | . 2 6 Detach 2 | . 2 . Swap 19 | . 7 12 Drop 19 | . 16 3 Fire 93 | . 36 57 Melee 9 | . . 9 Ram . | . . . Kick . | . . . Crush 7 | . 6 1 Escape Stasis . | . . . Rewire . | . . . Trap . | . . . Miscellaneous 1 | . . 1 Route ------- -11/Scrapyard -10/Materials (discovered 6 exits: [*Mat x3] / [*Min x2] / *Sub) -10/Subcaves (discovered 1 exit: [*Mat]) History --------- Turn | Location | Event 1 | -11/Scrapyard | Discovered new exit (range 2) 6 | -11/Scrapyard | Entered Materials 315 | -10/Materials | Build established: Mutant 458 | -10/Materials | Discovered new exit (range 3) 586 | -10/Materials | Discovered new exit (range 7) 681 | -10/Materials | Discovered new exit (range 5) 815 | -10/Materials | Discovered new exit (range 16) 991 | -10/Materials | Discovered new exit (range 12) 1358 | -10/Materials | Discovered new exit (range 4) 1381 | -10/Materials | Entered Subcaves 1410 | -10/Subcaves | A swath of the cavern ceiling suddenly collapsed 1496 | -10/Subcaves | Learned location of Zion (-7) 1496 | -10/Subcaves | Met a Zionite searching for "candidates" 1529 | -10/Subcaves | Discovered new exit (range 14) 1616 | -10/Subcaves | Core integrity fell below 50% 1660 | -10/Subcaves | Ambushed by angry Subdweller bent on revenge 1877 | -10/Subcaves | Released subatomizers from SUBCON Basin 2252 | -10/Subcaves | Visited 4L-MR0's lab 2268 | -10/Subcaves | Core integrity fell below 20% 2285 | -10/Subcaves | Destroyed by 6L-OCS(R) with Subdweller Laser Last Messages --------------- 02214_ Acquired Battle Cannon. 02224_ System corrupted: Heat flow error (+289). 02226_ Searching scrap... 02226_ Found Mak. Laser. 02226_ Found Sub. Laser. 02226_ Found 39 Matter. 02227_ Acquired 39 matter. 02228_ Dropped Sub. Beam Cannon. 02229_ Acquired Mak. Laser. 02230_ Dropped Scrap Shield Fragment. 02231_ Acquired Sub. Beam Cannon. 02266_ Mak. Shrapnel Gun destroyed. 02272_ Destroyed Scrap Shield. 02272_ Sub. Laser melted. 02272_ Y1-31U(R) destroyed. 02275_ Sub. Beam Cannon shoots sparks and powers down. 02276_ 6L-OCS(R) affixes Scrap Shield Fragment to Scrap Shield. 02279_ Sub. Monowheel destroyed. 02280_ Broken Sub. Beam Cannon destroyed. 02283_ Sub. Beam Cannon destroyed. Map ----- +----------------------------------------------------+ | | | | | | | | | | | | | | | | | | | | | | | | | | | | | | | | | ?????????????????????????????????????????????????? | | ?????????????????????????????????????????????????? | | ?????????????????????????????????????????????????? | | ?????????????????????????????????????????????????? | | ????????????????????????????????#????????????????? | | ??????????????????????????????""""#" #???????????? | | ????????????????????????????? "X" "!#???????????? | | ???????????????????????##### #?????????????? | | ???????????????????????# %R ####??????????? | | ???????????????????????#<@R########?#&#??????????? | | ???????????????????????#< ####???#### #??????????? | | ???????????????????????#< * #####"" [#??????????? | | ???????????????????????# # "##??????????? | | ???????????????????????##< ##" #???????????? | | ????????????????????????##<< ## "####???????????? | | ??????????????????????########" "###????????????? | | ??????????????????????# ### " ## #???????? | | ?????????????###??????# #????????? | | ?????????????#!####???# ####### ##????????? | | ????????????##&% ####### ##???????#?????????? | | ????????????#%&=[" ### ##??????????????????? | | ????????????# ##???????????????????? | | ????????????#" & " ##????????????????????? | | ????????????# "&" # ##?????????????????????? | | ????????????#### # #??????????????????????? | | ???????????????# # #??????????????????????? | | ???????????????# # #??????????????????????? | | ???????????????## ###??????????????????????? | | ??????????????## #????????????????????????? | | ?????????????## ##????????????????????????? | | ?????????????# #?????????????????????????? | | ?????????????# #?????#######??????????#### | | ?????????????## ## ####### ##?????????# | | ??????????????# ## ## #" " """"##?####??## # | +----------------------------------------------------+ Best States ------------- Heat Dissipation 25 Energy Generation 15 Energy Capacity 250 Matter Stores 300 Matter Capacity 300 Sight Range 16 Terrain Scan Density 10 Evasion (%) 40 Recoil Reduction 2 Item Schematics ----------------- Huge Storage Unit | -10/Materials | Hacked Robot Schematics ------------------ None Fabricated ------------ Nothing Alien Tech Used ----------------- None Achievements -------------- None Challenges ------------ None Game ------ Seed GuidedRecyclingEdition Manual? 0 Play Time 00:18:18 Cumulative 77.9 hours Start 2024.09.14 @ 17:46:51 End 2024.09.14 @ 18:01:50 Sessions 1 Manual Loads 0 Difficulty Rogue Special Mode None Game No. 102 Rogue 102 Adventurer 0 Explorer 0 Win Type - Total 1 Types 1/0/0/0/0/0/0/0/0 Lore% 17 Gallery% 54 Achievement% 43 Wizard Run 0 Options --------- Layout 0 ASCII 0 Keyboard 0 Movement Mouse Keybinds 1 Fullscreen 1 Font 18/TerminusBold Map View 76x50 Zoom Use 0% Tactical HUD 1 Map Filters NONE Filters NONE Steam 1 RUN: f320c922-41db-4d92-9776-c3d7584f8b6b